Cogmind - Beta 16 @@@ ROGUE MODE // 2026.01.01 @ 04:33:06 Player: LYMPH NODE JONES Result: Destroyed by G-34 Mercenary with Small Laser Performance ------------- Evolutions (0) 0 Regions Visited (1) 200 Robots Destroyed (14) 70 Value Destroyed (257) 257 Prototype IDs (0) 0 Alien Tech Used (0) 0 Bonus (0) 0 TOTAL SCORE: 527 Bonus ------- None Cogmind --------- Core Integrity 0/250 Matter 270/300 Energy 250/250 System Corruption 0% Temperature Cool (6) Movement Walking (190) Ox1 Location -10/Materials Parts ------- > --- POWER (1) -------- Ion Engine > --- PROPULSION (2) --- Aluminum Leg > --- UTILITY (2) ------ Small Storage Unit Targeting Computer > --- WEAPON (2) ------- Light Assault Rifle > --- INVENTORY (8) ---- Ion Engine Improved Aluminum Leg Improved Aluminum Leg Wheel Compact Wheel Targeting Computer Small Laser Peak State ------------ > --- POWER ------------ Light Ion Engine > --- PROPULSION ------- Aluminum Leg Improved Aluminum Leg > --- UTILITY ---------- Small Storage Unit Targeting Computer > --- WEAPON ----------- Assault Rifle Light Assault Rifle > --- INVENTORY -------- Ion Engine Improved Aluminum Leg Wheel Compact Wheel [Rating: 8] Favorites ----------- Power Ion Engine Engine Ion Engine Propulsion Aluminum Leg Leg Aluminum Leg Utility Small Storage Unit Storage Small Storage Unit Processor Targeting Computer Weapon Assault Rifle Energy Gun EM Pulse Gun Ballistic Gun Assault Rifle Build | -11 -10 ------- Run | Yrd Mat Slots Evolved . | . . Power . | . . Propulsion . | . . Utility . | . . Weapon . | . . Parts Attached 12 | 6 6 Power 2 | 1 1 Engine 2 | 1 1 Core . | . . Reactor . | . . Propulsion 5 | 2 3 Treads . | . . Leg 5 | 2 3 Wheel . | . . Hover . | . . Flight . | . . Utility 2 | 1 1 Device . | . . Storage 1 | 1 . Processor 1 | . 1 Hackware . | . . Protection . | . . Artifact . | . . Weapon 3 | 2 1 Energy Gun 1 | 1 . Energy Cannon . | . . Ballistic Gun 2 | 1 1 Ballistic Cannon . | . . Launcher . | . . Special Weapon . | . . Impact Weapon . | . . Slashing Weapon . | . . Piercing Weapon . | . . Special Melee Weapon . | . . Unidentified Prototypes . | . . Parts Lost 5 | . 5 Power 1 | . 1 Propulsion 2 | . 2 Utility . | . . Weapon 2 | . 2 Highest Loss Streak 3 | . 3 To Critical Strikes . | . . Average Backups 5 | 1 5 Power . | . 1 Propulsion 3 | . 3 Utility . | . . Weapon . | . . Tool/Special . | . . Unused Backups 6 | . 6 Power 1 | . 1 Propulsion 3 | . 3 Utility 1 | . 1 Weapon 1 | . 1 Tool/Special . | . . Average Slot Usage (%) 94 | . 94 Engine 11 | . 11 Leg 26 | . 26 Storage 14 | . 14 Processor 13 | . 13 Energy Gun 3 | . 3 Ballistic Gun 23 | . 23 Peak Build Rating 8 | 6 8 Average Rating 6 | 4 6 On Entrance 3 | . 6 Avg Prop Armor Cover (%) . | . . Naked Turns . | . . Heaviest Build 13 | 12 13 Greatest Support 23 | 20 23 Greatest Overweight (x) 1 | 1 . Average Overweight (x) . | . . Largest Inventory Capacity 8 | 8 8 Average Capacity 7 | 6 8 Most Carried 7 | 4 7 Average Carried 5 | 1 5 Final Capacity 8 | 8 8 Final Carried 7 | 4 7 Class Distribution -------------------- 100% | Mutant Dominant Class ---------------- Mutant | -10/Materials Resources | -11 -10 ----------- Run | Yrd Mat Matter Collected 404 | 172 232 Remotely . | . . Salvage Created 355 | . 355 Parts 27 | . 27 Haulers Intercepted . | . . Recyclers Shooed . | . . Parts Field Recycled . | . . Retrieved Matter . | . . Parts Self-Destructed . | . . Prevented . | . . Parts Restored . | . . Kills | -11 -10 ------- Run | Yrd Mat Combat Hostiles Destroyed 11 | . 11 Guns 11 | . 11 Classes Destroyed 4 | . 4 Worker 2 | . 2 Builder 1 | . 1 Swarmer 6 | . 6 Grunt 5 | . 5 Best Kill Streak 5 | . 5 Combat Bots Only 5 | . 5 Max Kills in Single Turn 3 | . 3 Gunslinging . | . . Exploded . | . . Melee . | . . Uniques/NPCs Destroyed . | . . Combat | -11 -10 -------- Run | Yrd Mat Hostile Shots Fired 123 | . 123 Missed 35 | . 35 Hits 88 | . 88 Projectile 88 | . 88 Damage Taken 926 | . 926 Core 250 | . 250 Absorbed by Shields . | . . Core Remaining (%) 100 | 100 . Volleys Fired 48 | . 48 Largest 2 | . 2 Hottest 60 | . 60 Shots Fired 80 | . 80 Gun 80 | . 80 Cannon . | . . Launcher . | . . Special . | . . Kinetic 75 | . 75 Thermal . | . . Explosive . | . . Electromagnetic 5 | . 5 Robot Hit Streak 9 | . 9 Robot Miss Streak 3 | . 3 Penetration Max . | . . Secondary Targets 1 | . 1 Max Gunslinging Chain 1 | . 1 Shots Hit Robots 53 | . 53 Core Hits 19 | . 19 Critical Kills . | . . Critical Parts Destroyed . | . . Critical Strikes . | . . Melee Attacks . | . . Impact . | . . Slashing . | . . Piercing . | . . Sneak Attacks . | . . Combat Hostiles . | . . Follow-up Attacks . | . . Damage Inflicted 779 | . 779 Guns 548 | . 548 Cannons . | . . Explosions 231 | . 231 Melee . | . . Ramming . | . . Kinetic 513 | . 513 Thermal 231 | . 231 Explosive . | . . Electromagnetic 35 | . 35 Impact . | . . Slashing . | . . Piercing . | . . Highest Corruption . | . . Average Corruption . | . . Corruption Purged . | . . Corruption Blocked . | . . Overload Shots . | . . Overflow Damage 134 | . 134 Projectiles . | . . Explosions 134 | . 134 Melee . | . . Knockbacks . | . . Impact . | . . Kinetic . | . . Secondary . | . . Self-Inflicted Damage 99 | . 99 Shots 1 | . 1 Rammed . | . . Targets Rammed . | . . Kicked . | . . Crushed . | . . Highest Temperature 36 | . 36 Average Temperature 12 | . 12 Received Heat Transfer 270 | . 270 Siege Activations . | . . Martial Activations . | . . Shielding Activations . | . . Robots Disrupted . | . . Combat Hostiles . | . . Robots Corrupted . | . . Combat Hostiles . | . . Parts Fried . | . . Impact Corruptions . | . . Robots Melted . | . . Combat Hostiles . | . . Parts Melted . | . . Heat Transferred 150 | . 150 Parts Sabotaged . | . . Parts Stolen . | . . Parts Stripped . | . . Power Chain Reactions . | . . Alert | -11 -10 ------- Run | Yrd Mat Maximum Alert Level . | . . Low Security (%) 100 | 100 100 Level 1 . | . . Level 2 . | . . Level 3 . | . . Level 4 . | . . Level 5 . | . . High Security . | . . Max Security . | . . Peak Influence 156 | . 156 Initial . | . . Average 64 | . 71 Influence Increases 316 | . 316 Destroy 0b10 Robot/C 220 | . 220 Destroy 0b10 Robot/NC 15 | . 15 Destroy Leader 40 | . 40 Disable Machine 30 | . 30 Destroy Structure 11 | . 11 Influence Decreases 266 | . 266 Time Decay 216 | . 216 Lost Part 50 | . 50 Squads Dispatched 2 | . 2 Investigation 1 | . 1 Extermination . | . . Reinforcement 1 | . 1 Assault . | . . Garrison . | . . Intercept . | . . Searches Triggered . | . . Construction Impeded . | . . Haulers Reinforced . | . . Active Scanning Responses . | . . Cargo Convoy Interrupts . | . . Stealth | -11 -10 --------- Run | Yrd Mat Distress Signals 3 | . 3 Communications Jammed . | . . Distress Signals . | . . Times Spotted 21 | . 21 Peak Tracking Total 7 | . 7 Tactical Retreats . | . . Traps | -11 -10 ------- Run | Yrd Mat Traps Triggered 1 | . 1 Indirectly . | . . Trap Hack Attempts . | . . Triggered . | . . Disarmed . | . . Reprogrammed . | . . Reused . | . . Traps Extracted . | . . Installed . | . . Triggered . | . . Machines | -11 -10 ---------- Run | Yrd Mat Machines Disabled 2 | . 2 Max in Single Turn 2 | . 2 Machines Repaired . | . . Machines Dismantled . | . . Machines Sabotaged . | . . Overloaded Fab Kills . | . . Hacking | -11 -10 --------- Run | Yrd Mat Machines Accessed . | . . Terminals . | . . Fabricators . | . . Repair Stations . | . . Recycling Units . | . . Scanalyzers . | . . Garrison Access . | . . Total Hacks . | . . Successful . | . . Failed . | . . Catastrophic . | . . Database Lockouts . | . . Manual . | . . Terminals . | . . Fabricators . | . . Repair Stations . | . . Recycling Units . | . . Scanalyzers . | . . Garrison Access . | . . Terminal Hacks . | . . Fabricator Hacks . | . . Repair Station Hacks . | . . Recycling Unit Hacks . | . . Scanalyzer . | . . Garrison Access Hacks . | . . Unauthorized Hacks . | . . Terminals . | . . Fabricators . | . . Repair Stations . | . . Recycling Units . | . . Scanalyzers . | . . Garrison Access . | . . Data Cores Recovered . | . . Used . | . . Hacking Detections . | . . Full Trace Events . | . . Feedback Events . | . . Feedback Blocked . | . . Robot Schematics Acquired . | . . Robots Built . | . . Authchips . | . . Time . | . . Total Robot Build Rating . | . . Part Schematics Acquired . | . . Parts Built . | . . Authchips . | . . Time . | . . Total Part Build Rating . | . . Part Studies Acquired . | . . Parts Repaired . | . . Time . | . . Parts Recycled . | . . Recycled Matter . | . . Retrieved Matter . | . . Retrieved Components . | . . Parts Scanalyzed . | . . Part Schematics Acquired . | . . Parts Damaged . | . . Bothacking | -11 -10 ------------ Run | Yrd Mat Used RIF Installer . | . . Robots Hacked . | . . Non-combat . | . . Combat . | . . Robot Hacks Applied . | . . Relay Couplers Released . | . . Fabnet Peak Effective % . | . . Robots Rewired . | . . Allies Hacked . | . . Hacks Repelled . | . . Allies | -11 -10 -------- Run | Yrd Mat Total Allies . | . . Largest Group . | . . Highest-Rated Group . | . . Highest-Rated Ally . | . . Total Orders . | . . Ally Attacks . | . . Total Damage . | . . Kills . | . . Allies Corrupted . | . . Allies Melted . | . . Intel | -11 -10 ------- Run | Yrd Mat Active Infowar (turns) . | . . Robot Analysis Total . | . . Derelict Logs Recovered . | . . Drone Launches . | . . Drone Recoveries . | . . Exploration | -11 -10 ------------- Run | Yrd Mat Turns Passed 709 | 75 634 Spaces Moved 454 | 59 395 Core 15 | 15 . Treads . | . . Legs 439 | 44 395 Wheels . | . . Hover . | . . Flight . | . . Fastest Speed 50 | 50 120 Average Speed 118 | 106 120 Slowest Speed 120 | 120 120 Overloaded Moves . | . . Propulsion Burnouts . | . . Robots Hopped . | . . Potential Cave-ins . | . . Cave-ins Triggered . | . . Exploration Rate (%) 24 | 5 44 Regions Visited 1 Branch Regions . Pre-discovered Areas . | . . Known Exits Taken . | . . Unknown Exits Taken 1 | 1 . Scrap Searched . | . . Spaces Dug . | . . Terrain Destroyed 10 | . 10 Melee . | . . Projectile . | . . AOE 10 | . 10 Terrain Rammed . | . . Walls Destroyed . | . . Machines Disabled . | . . Actions | -11 -10 --------- Run | Yrd Mat Total 551 | 68 483 Wait 28 | . 28 Move 453 | 58 395 Hop . | . . Pick Up 8 | 4 4 Fast Attach 10 | 6 4 Attach 2 | . 2 Detach 1 | . 1 Swap . | . . Drop 1 | . 1 Fire 48 | . 48 Melee . | . . Ram . | . . Kick . | . . Crush . | . . Escape Stasis . | . . Rewire . | . . Trap . | . . Miscellaneous . | . . Route ------- -11/Scrapyard -10/Materials (discovered 1 exit: [*Min]) History --------- Turn | Location | Event 11 | -11/Scrapyard | Discovered new exit (range 16) 76 | -11/Scrapyard | Entered Materials 76 | -10/Materials | Discovered new exit (range 16) 299 | -10/Materials | Lost 3 parts (1p1n1w) 302 | -10/Materials | Build established: Mutant 652 | -10/Materials | Core integrity fell below 50% 678 | -10/Materials | Core integrity fell below 20% 710 | -10/Materials | Destroyed by G-34 Mercenary with Small Laser Last Messages --------------- 00388_ G-34 Mercenary destroyed. 00389_ K-01 Serf collects debris. 00392_ R-06 Scavenger collects Aluminum Leg. 00394_ Acquired 42 matter. 00395_ K-01 Serf collects debris. 00398_ Acquired 12 matter. 00398_ K-01 Serf collects debris. 00402_ Acquired 4 matter. 00402_ R-06 Scavenger collects Aluminum Leg. 00403_ K-01 Serf collects debris. 00494_ Acquired Targeting Computer. 00596_ Connecting with Terminal... 00613_ Triggered Alarm Trap. 00613_ An alarm sounds. 00613_ ALERT: Alarm triggered, dispatching investigation squad. 00655_ Aluminum Leg destroyed. 00655_ G-34 Mercenary destroyed. 00661_ Assault Rifle destroyed. 00683_ G-34 Mercenary destroyed. Map ----- +----------------------------------------------------+ | ?????????????????????????????????????????????????? | | ?????????????????????????????????????????????????? | | ?????????????????????????????????????????????????? | | ?????????????????????????????????????????????????? | | ?????????????????????????????????????????????????? | | ?????????????????????????????????????????????????? | | ?????? ????????????????????????????????????????? | | ?????? #???????????????????????????????????????? | | ??#### #???????????????????????????????????????? | | ?? # #?###???????????????????????????????????? | | ??!! # ## ????????????? ?????????????????????? | | ??% # ????????????? #????????????????????? | | ??! # ?????????????? #????????????????????? | | ?? # ??????????????? #????????????????????? | | ?? # #??????????????? #????????????????????? | | ###+## #?????????????"" #????????????????????? | | #??????????????" #????????????????????? | | #########?????? #????????????????????? | | !! ??????? ????????????????????? | | ! ! #?????????? ?????????????????????? | | !! #?????????? ?????????????????????? | | % #####?######+#####?????????????????? | | + """ #?????????????????? | | % #####???# "T" #?????????????????? | | ######+###### #???????# #?????????????????? | | # # #??????????# @ #?????????????????? | | ### " #??????????# !g #?????????????????? | | #?# """"" #??????????# """%*= #?????????????????? | | #?# """"" #??????????# """=[* #?????????????????? | | #?# """"" #??######### """ #?????????????????? | | #?# """"" #??# T ## #?????????????????? | | #?# """"" #??# ###+#######?????????????????? | | ??# """"" #??# == #?# #???????????????????????? | | ??# = #??# == #?# #???????????????????????? | | ??#+########??# = #?# #???????????????????????? | | ??# #?????????# #?# #???????????????????????? | | ??# ######### ####+##### #???????????????????????? | | ??# #???????????????????????? | | ###/##### ######## #???????????????????????? | | # ## #??##! ##??????????????????????? | | #! """ ## #??#! ???????????????? | | # """ ## #??#! ############??????????????????? | | # """ ## #??#! #?????????????????????????????? | | # ## #??#! #?????????????????????????????? | | # ## #??##! #?????????????????????????????? | | ###+##### ######## ########??????????????????????? | | +??????????????????????? | | ###########################??????????????????????? | | ?????????????????????????????????????????????????? | | ?????????????????????????????????????????????????? | +----------------------------------------------------+ Best States ------------- Heat Dissipation 25 Energy Generation 10 Energy Capacity 250 Matter Stores 300 Matter Capacity 300 Sight Range 16 Terrain Scan Density 10 Evasion (%) 55 Targeting Accuracy 5 Item Schematics ----------------- None Robot Schematics ------------------ None Fabricated ------------ Nothing Repaired ---------- Nothing Studied --------- None Alien Tech Used ----------------- None Achievements -------------- None Challenges ------------ None Game ------ Seed SmartHardenedDerivative Manual? 0 Play Time 00:13:08 Cumulative 4.9 hours Start 2026.01.01 @ 02:22:20 End 2026.01.01 @ 04:33:06 Sessions 1 Manual Loads 0 Difficulty Rogue Special Mode None Game No. 13 Rogue 13 Adventurer 0 Explorer 0 Win Type - Total 0 Types 0/0/0/0/0/0/0/0/0/0 Lore% 1 Gallery% 7 Achievement% 9 Wizard Run 0 Options --------- Layout 1 ASCII 0 Keyboard 0 Movement Arrows Keybinds 0 Fullscreen 1 Font 16/SmallcapsGlow Map View 50x40 Zoom Use 0% Tactical HUD 1 Map Filters NONE Filters NONE Steam SD RUN: cb9a1ce1-3f82-4435-965c-3d158023683c